Workbook

Sheet Instructions
B2: State of Georgia
B3: In Conjunction with NASPO ValuePoint
B4: Electronic Request for Proposals ("eRFP")
B5: eRFP (Event) Number: 41900-DCH0000136
B6: Event Name: Pharmacy Benefit Services
B7: Attachment X - Pharmacy FWA Audit Services Cost Worksheet
B9: Instructions for Supplier
B10: Suppliers are bidding on the Design, Development and Implementation (DDI), monthly Operations and Maintenance (O&M) costs, and additional program support the Supplier will charge to administer the Pharmacy Fraud, Waste and Abuse (FWA) Audit Services as described in the eRFP. Please refer to the instructions below, Attachment A eRFP document "Section 5, Cost Proposal," Attachment C - Common Scope Requirements and Security Standards, and Attachment H - Pharmacy Fraud, Waste and Abuse Audit Services Scope of Work for details describing the scope to be provided before completing this Cost Worksheet.
B11: 1 | C11: Supplier shall provide firm/fixed pricing for the service(s) and deliverables for which a response is being submitted to as described in the eRFP.
B12: 2 | C12: Suppliers shall complete the Cost Proposal worksheet using the cells highlighted in yellow.
B13: 3 | C13: Suppliers shall not modify any cells in the spreadsheet other than those highlighted yellow. The other cells are fixed or will calculate automatically.
B14: 5 | C14: Suppliers shall not modify the formulas in the worksheets.
B15: 4 | C15: Suppliers shall insert 0 in any yellow highlighted cells that are not applicable or for which the proposed cost is zero ($0).
B16: 6 | C16: For evaluation purposes, the total cost will be determined by the value found in D14 which is comprised of the total DDI (Table A) and O&M (including all Tiers of Tables B.1, B.2, B.3, and B.4) Costs over a period of ten (10) years.
B18: Instructions for Adjusting Costs One or More Years After the Effective Date of the Master Agreement
B20: For Participating Addenda signed one year or more years after the Effective Date of the Master Agreement, the cost will be adjusted using the Consumer Price Index Urban (CPI-U) to account for economic changes that may impact cost.
B23: CPI-U for United States Adjustment Factor Calculation:
B24: CPI-U Index for the month and year of the execution of a Participating Addendum
B25: Less the CPI-U Index for the month and year of the Effective Date of the Master Agreement
B26: Equals Index Point Change
B27: Divided by CPI-U Index B: C/B = D
B28: Result multiplied by 100: D*100 = E: Equals CPI-U Inflation Percentage
B30: Steps to Adjust Costs for CPI-U
B31: 1 | C31: Follow the link below to access the CPI-U data.
C32: https://www.bls.gov/cpi/tables/supplemental-files/home.htm
B33: 2 | C33: Select, download and save the file with the most recently published CPI-U data that is available for the month the Participating Addendum is signed. (Also find and select the CPI-U for when the Master Agreement was originally executed). Use the “All Items” CPI-U “Unadjusted indexes” values instead of the “Seasonally adjusted indexes” values.
B34: 3 | C34: Enter the CPI-U value from the previous step in field C82 "CPI-U for Participating Addendum Date."
B35: 4 | C35: Enter the CPI-U value for the month of the Effective Date of the Master Agreement in C81 "CPI-U for Master Agreement Date MM/DD/20YY."
B36: 5 | C36: The “CPI-U Inflation Percentage” will be calculated automatically based on the values from steps 3 and 4. This will also automatically update all the CPI-U Adjusted Price fields in the cost tables.
B37: 6 | C37: CPI-U Adjusted Prices will be subject to negotiation upon execution of a Participating Addendum.

Sheet Cost Worksheet
B2: State of Georgia
B3: In Conjunction with NASPO ValuePoint
B4: Electronic Request for Proposals ("eRFP")
B5: eRFP (Event) Number: 41900-DCH0000136
B6: Event Name: Pharmacy Benefit Services
B7: Attachment X - Pharmacy FWA Audit Services Cost Worksheet
B9: SUPPLIER LEGAL ENTITY NAME: | C9: NorthStar HealthCare Consulting
B10: SUPPLIER REPRESENTATIVE NAME: | C10: Emily Baker, Pharm.D., MBA, MHA
B11: SUPPLIER REPRESENTATIVE TITLE: | C11: President
B12: DATE: | C12: 2024-05-13
B14: TOTAL EVALUATION COST AMOUNT (Sum of Evaluation Costs Below, including Table A and all Tiers of Tables B.1-B.4): | F14: =D25+Y34+Y38+Y42+Y51+Y55+Y59+Y68+Y72+Y76+Y86+Y90+Y94 -> $44,456,045.82
B16: Table A
B17: Instructions: Please enter the costs to implement your services and/or Solution.
B18: Service Design, Development, and Implementation (DDI) Cost
C19: Initial Cost | D19: CPI-U Adjusted Cost
B20: Project Planning and Startup | C20: $125,950.00 | D20: =+C20*$C$116 -> $125,950.00
B21: Design, Development, and Testing | C21: $126,450.00 | D21: =+C21*$C$116 -> $126,450.00
B22: Operational Readiness and Production Cutover | C22: $83,500.00 | D22: =+C22*$C$116 -> $83,500.00
B23: Training | C23: $27,500.00 | D23: =+C23*$C$116 -> $27,500.00
B24: Acceptance, Deployment | C24: $81,200.00 | D24: =+C24*$C$116 -> $81,200.00
B25: Total DDI Costs: | D25: =SUM(D20:D24) -> $444,600.00
B28: Table B.1
B29: Desk Audit Administrative Fee The monthly administration fee should include all the O&M costs to provide the Desk Audit services required as described in the scope of work. | E29: Year 1 | G29: Year 2 | I29: Year 3 | K29: Year 4 | M29: Year 5 | O29: Year 6 | Q29: Year 7 | S29: Year 8 | U29: Year 9 | W29: Year 10 | Y29: 10-Year Total for Pharmacy Fraud, Waste and Abuse Audit Services O&M Desk Audit Administration | Z29: For Informational Purposes Only Annual Average Desk Audit Administration Cost
E30: Initial Rate | F30: CPI-U Adjusted Rate | G30: Initial Rate | H30: CPI-U Adjusted Rate | I30: Initial Rate | J30: CPI-U Adjusted Rate | K30: Initial Rate | L30: CPI-U Adjusted Rate | M30: Initial Rate | N30: CPI-U Adjusted Rate | O30: Initial Rate | P30: CPI-U Adjusted Rate | Q30: Initial Rate | R30: CPI-U Adjusted Rate | S30: Initial Rate | T30: CPI-U Adjusted Rate | U30: Initial Rate | V30: CPI-U Adjusted Rate | W30: Initial Rate | X30: CPI-U Adjusted Rate
B31: Tier 1 Desk Audit Monthly Administrative Fee
B32: To support a maximum of 1,500 Desk Audits per Year | D32: Total Monthly Cost | E32: $35,000.00 | F32: =E32*$C$116 -> $35,000.00 | G32: $30,600.00 | H32: =G32*$C$116 -> $30,600.00 | I32: =G32*1.05 -> $32,130.00 | J32: =I32*$C$116 -> $32,130.00 | K32: =I32*1.05 -> $33,736.50 | L32: =K32*$C$116 -> $33,736.50 | M32: =K32*1.05 -> $35,423.33 | N32: =M32*$C$116 -> $35,423.33 | O32: =M32*1.05 -> $37,194.49 | P32: =O32*$C$116 -> $37,194.49 | Q32: =O32*1.05 -> $39,054.22 | R32: =Q32*$C$116 -> $39,054.22 | S32: =Q32*1.05 -> $41,006.93 | T32: =S32*$C$116 -> $41,006.93 | U32: =S32*1.05 -> $43,057.27 | V32: =U32*$C$116 -> $43,057.27 | W32: =U32*1.05 -> $45,210.14 | X32: =W32*$C$116 -> $45,210.14
E33: X 12 | F33: months | G33: X 12 | H33: months | I33: X 12 | J33: months | K33: X 12 | L33: months | M33: X 12 | N33: months | O33: X 12 | P33: months | Q33: X 12 | R33: months | S33: X 12 | T33: months | U33: X 12 | V33: months | W33: X 12 | X33: months
B34: Tier 1 Evaluation Cost | E34: =F32*12 -> = $ 420,000 | G34: =H32*12 -> = $ 367,200 | I34: =J32*12 -> = $ 385,560 | K34: =L32*12 -> = $ 404,838 | M34: =N32*12 -> = $ 425,080 | O34: =P32*12 -> = $ 446,334 | Q34: =R32*12 -> = $ 468,651 | S34: =T32*12 -> = $ 492,083 | U34: =V32*12 -> = $ 516,687 | W34: =X32*12 -> = $ 542,522 | Y34: =SUM(E34:W34) -> =$4,468,954 | Z34: =Y34/10 -> =$446,895
B35: Tier 2 Desk Audit Monthly Administrative Fee
B36: To support between 1,501-3,000 Desk Audits per Year | D36: Total Monthly Cost | E36: $38,000.00 | F36: =E36*$C$116 -> $38,000.00 | G36: $33,600.00 | H36: =G36*$C$116 -> $33,600.00 | I36: =G36*1.05 -> $35,280.00 | J36: =I36*$C$116 -> $35,280.00 | K36: =I36*1.05 -> $37,044.00 | L36: =K36*$C$116 -> $37,044.00 | M36: =K36*1.05 -> $38,896.20 | N36: =M36*$C$116 -> $38,896.20 | O36: =M36*1.05 -> $40,841.01 | P36: =O36*$C$116 -> $40,841.01 | Q36: =O36*1.05 -> $42,883.06 | R36: =Q36*$C$116 -> $42,883.06 | S36: =Q36*1.05 -> $45,027.21 | T36: =S36*$C$116 -> $45,027.21 | U36: =S36*1.05 -> $47,278.57 | V36: =U36*$C$116 -> $47,278.57 | W36: =U36*1.05 -> $49,642.50 | X36: =W36*$C$116 -> $49,642.50
E37: X 12 | F37: months | G37: X 12 | H37: months | I37: X 12 | J37: months | K37: X 12 | L37: months | M37: X 12 | N37: months | O37: X 12 | P37: months | Q37: X 12 | R37: months | S37: X 12 | T37: months | U37: X 12 | V37: months | W37: X 12 | X37: months
B38: Tier 2 Evaluation Cost | E38: =F36*12 -> =$456,000 | G38: =H36*12 -> =$403,200 | I38: =J36*12 -> =$423,360 | K38: =L36*12 -> =$444,528 | M38: =N36*12 -> =$466,754 | O38: =P36*12 -> =$490,092 | Q38: =R36*12 -> =$514,597 | S38: =T36*12 -> =$540,327 | U38: =V36*12 -> =$567,343 | W38: =X36*12 -> =$595,710 | Y38: =SUM(E38:W38) -> =$4,901,911 | Z38: =Y38/10 -> =$490,191
B39: Tier 3 Desk Audit Monthly Administrative Fee
B40: To support a minimum of 3,001 Desk Audits per Year | D40: Total Monthly Cost | E40: $44,000.00 | F40: =E40*$C$116 -> $44,000.00 | G40: $39,600.00 | H40: =G40*$C$116 -> $39,600.00 | I40: =G40*1.05 -> $41,580.00 | J40: =I40*$C$116 -> $41,580.00 | K40: =I40*1.05 -> $43,659.00 | L40: =K40*$C$116 -> $43,659.00 | M40: =K40*1.05 -> $45,841.95 | N40: =M40*$C$116 -> $45,841.95 | O40: =M40*1.05 -> $48,134.05 | P40: =O40*$C$116 -> $48,134.05 | Q40: =O40*1.05 -> $50,540.75 | R40: =Q40*$C$116 -> $50,540.75 | S40: =Q40*1.05 -> $53,067.79 | T40: =S40*$C$116 -> $53,067.79 | U40: =S40*1.05 -> $55,721.18 | V40: =U40*$C$116 -> $55,721.18 | W40: =U40*1.05 -> $58,507.24 | X40: =W40*$C$116 -> $58,507.24
E41: X 12 | F41: months | G41: X 12 | H41: months | I41: X 12 | J41: months | K41: X 12 | L41: months | M41: X 12 | N41: months | O41: X 12 | P41: months | Q41: X 12 | R41: months | S41: X 12 | T41: months | U41: X 12 | V41: months | W41: X 12 | X41: months
B42: Tier 3 Evaluation Cost | E42: =F40*12 -> =$528,000 | G42: =H40*12 -> =$475,200 | I42: =J40*12 -> =$498,960 | K42: =L40*12 -> =$523,908 | M42: =N40*12 -> =$550,103 | O42: =P40*12 -> =$577,609 | Q42: =R40*12 -> =$606,489 | S42: =T40*12 -> =$636,813 | U42: =V40*12 -> =$668,654 | W42: =X40*12 -> =$702,087 | Y42: =SUM(E42:W42) -> =$5,767,823 | Z42: =Y42/10 -> =$576,782
B45: Table B.2
B46: Field Audit Administrative Fee The monthly administration fee should include all the O&M costs to provide the Field Audit services required as described in the scope of work. | E46: Year 1 | G46: Year 2 | I46: Year 3 | K46: Year 4 | M46: Year 5 | O46: Year 6 | Q46: Year 7 | S46: Year 8 | U46: Year 9 | W46: Year 10 | Y46: 10-Year Total for Pharmacy Fraud, Waste and Abuse Audit Services O&M Field Audit Administration | Z46: For Informational Purposes Only Annual Average Field Audit Administration Cost
E47: Initial Rate | F47: CPI-U Adjusted Rate | G47: Initial Rate | H47: CPI-U Adjusted Rate | I47: Initial Rate | J47: CPI-U Adjusted Rate | K47: Initial Rate | L47: CPI-U Adjusted Rate | M47: Initial Rate | N47: CPI-U Adjusted Rate | O47: Initial Rate | P47: CPI-U Adjusted Rate | Q47: Initial Rate | R47: CPI-U Adjusted Rate | S47: Initial Rate | T47: CPI-U Adjusted Rate | U47: Initial Rate | V47: CPI-U Adjusted Rate | W47: Initial Rate | X47: CPI-U Adjusted Rate
B48: Tier 1 Field Audit Monthly Administrative Fee
B49: To support a maximum of 150 Field Audits per Year | D49: Total Monthly Cost | E49: $21,800.00 | F49: =E49*$C$116 -> $21,800.00 | G49: $19,150.00 | H49: =G49*$C$116 -> $19,150.00 | I49: =G49*1.05 -> $20,107.50 | J49: =I49*$C$116 -> $20,107.50 | K49: =I49*1.05 -> $21,112.88 | L49: =K49*$C$116 -> $21,112.88 | M49: =K49*1.05 -> $22,168.52 | N49: =M49*$C$116 -> $22,168.52 | O49: =M49*1.05 -> $23,276.94 | P49: =O49*$C$116 -> $23,276.94 | Q49: =O49*1.05 -> $24,440.79 | R49: =Q49*$C$116 -> $24,440.79 | S49: =Q49*1.05 -> $25,662.83 | T49: =S49*$C$116 -> $25,662.83 | U49: =S49*1.05 -> $26,945.97 | V49: =U49*$C$116 -> $26,945.97 | W49: =U49*1.05 -> $28,293.27 | X49: =W49*$C$116 -> $28,293.27
F50: months | G50: X 12 | H50: months | I50: X 12 | J50: months | K50: X 12 | L50: months | M50: X 12 | N50: months | O50: X 12 | P50: months | Q50: X 12 | R50: months | S50: X 12 | T50: months | U50: X 12 | V50: months | W50: X 12 | X50: months
B51: Tier 1 Evaluation Cost | E51: =F49*12 -> = $ 261,600 | G51: =H49*12 -> = $ 229,800 | I51: =J49*12 -> = $ 241,290 | K51: =L49*12 -> = $ 253,355 | M51: =N49*12 -> = $ 266,022 | O51: =P49*12 -> = $ 279,323 | Q51: =R49*12 -> = $ 293,290 | S51: =T49*12 -> = $ 307,954 | U51: =V49*12 -> = $ 323,352 | W51: =X49*12 -> = $ 339,519 | Y51: =SUM(E51:W51) -> =$2,795,504 | Z51: =Y51/10 -> =$279,550
B52: Tier 2 Field Audit Monthly Administrative Fee
B53: To support between 151-300 Field Audits per Year | D53: Total Monthly Cost | E53: $24,800.00 | F53: =E53*$C$116 -> $24,800.00 | G53: $22,150.00 | H53: =G53*$C$116 -> $22,150.00 | I53: =G53*1.05 -> $23,257.50 | J53: =I53*$C$116 -> $23,257.50 | K53: =I53*1.05 -> $24,420.38 | L53: =K53*$C$116 -> $24,420.38 | M53: =K53*1.05 -> $25,641.39 | N53: =M53*$C$116 -> $25,641.39 | O53: =K53*1.05 -> $25,641.39 | P53: =O53*$C$116 -> $25,641.39 | Q53: =O53*1.05 -> $26,923.46 | R53: =Q53*$C$116 -> $26,923.46 | S53: =Q53*1.05 -> $28,269.64 | T53: =S53*$C$116 -> $28,269.64 | U53: =S53*1.05 -> $29,683.12 | V53: =U53*$C$116 -> $29,683.12 | W53: =U53*1.05 -> $31,167.27 | X53: =W53*$C$116 -> $31,167.27
E54: X 12 | F54: months | G54: X 12 | H54: months | I54: X 12 | J54: months | K54: X 12 | L54: months | M54: X 12 | N54: months | O54: X 12 | P54: months | Q54: X 12 | R54: months | S54: X 12 | T54: months | U54: X 12 | V54: months | W54: X 12 | X54: months
B55: Tier 2 Evaluation Cost | E55: =F53*12 -> =$297,600 | G55: =H53*12 -> =$265,800 | I55: =J53*12 -> =$279,090 | K55: =L53*12 -> =$293,045 | M55: =N53*12 -> =$307,697 | O55: =P53*12 -> =$307,697 | Q55: =R53*12 -> =$323,082 | S55: =T53*12 -> =$339,236 | U55: =V53*12 -> =$356,197 | W55: =X53*12 -> =$374,007 | Y55: =SUM(E55:W55) -> =$3,143,450 | Z55: =Y55/10 -> =$314,345
B56: Tier 3 Field Audit Monthly Administrative Fee
B57: To support a minimum of 301 Field Audits per Year | D57: Total Monthly Cost | E57: $34,800.00 | F57: =E57*$C$116 -> $34,800.00 | G57: $32,150.00 | H57: =G57*$C$116 -> $32,150.00 | I57: =G57*1.05 -> $33,757.50 | J57: =I57*$C$116 -> $33,757.50 | K57: =I57*1.05 -> $35,445.38 | L57: =K57*$C$116 -> $35,445.38 | M57: =K57*1.05 -> $37,217.64 | N57: =M57*$C$116 -> $37,217.64 | O57: =M57*1.05 -> $39,078.53 | P57: =O57*$C$116 -> $39,078.53 | Q57: =O57*1.05 -> $41,032.45 | R57: =Q57*$C$116 -> $41,032.45 | S57: =Q57*1.05 -> $43,084.07 | T57: =S57*$C$116 -> $43,084.07 | U57: =S57*1.05 -> $45,238.28 | V57: =U57*$C$116 -> $45,238.28 | W57: =U57*1.05 -> $47,500.19 | X57: =W57*$C$116 -> $47,500.19
E58: X 12 | F58: months | G58: X 12 | H58: months | I58: X 12 | J58: months | K58: X 12 | L58: months | M58: X 12 | N58: months | O58: X 12 | P58: months | Q58: X 12 | R58: months | S58: X 12 | T58: months | U58: X 12 | V58: months | W58: X 12 | X58: months
B59: Tier 3 Evaluation Cost | E59: =F57*12 -> =$417,600 | G59: =H57*12 -> =$385,800 | I59: =J57*12 -> =$405,090 | K59: =L57*12 -> =$425,345 | M59: =N57*12 -> =$446,612 | O59: =P57*12 -> =$468,942 | Q59: =R57*12 -> =$492,389 | S59: =T57*12 -> =$517,009 | U59: =V57*12 -> =$542,859 | W59: =X57*12 -> =$570,002 | Y59: =SUM(E59:W59) -> =$4,671,649 | Z59: =Y59/10 -> =$467,165
B62: Table B.3
B63: Concurrent Audit Administrative Fee The monthly administration fee should include all the O&M costs to provide the Field Audit services required as described in the scope of work. | E63: Year 1 | G63: Year 2 | I63: Year 3 | K63: Year 4 | M63: Year 5 | O63: Year 6 | Q63: Year 7 | S63: Year 8 | U63: Year 9 | W63: Year 10 | Y63: 10-Year Total for Pharmacy Fraud, Waste and Abuse Audit Services O&M Concurrent Audit Administration | Z63: For Informational Purposes Only Annual Average Concurrent Audit Administration Cost
E64: Initial Rate | F64: CPI-U Adjusted Rate | G64: Initial Rate | H64: CPI-U Adjusted Rate | I64: Initial Rate | J64: CPI-U Adjusted Rate | K64: Initial Rate | L64: CPI-U Adjusted Rate | M64: Initial Rate | N64: CPI-U Adjusted Rate | O64: Initial Rate | P64: CPI-U Adjusted Rate | Q64: Initial Rate | R64: CPI-U Adjusted Rate | S64: Initial Rate | T64: CPI-U Adjusted Rate | U64: Initial Rate | V64: CPI-U Adjusted Rate | W64: Initial Rate | X64: CPI-U Adjusted Rate
B65: Tier 1 Concurrent Audit Monthly Administrative Fee
B66: To support a maximum of 15,000 Concurrent Audits per Year | D66: Total Monthly Cost | E66: $13,250.00 | F66: =E66*$C$116 -> $13,250.00 | G66: $11,250.00 | H66: =G66*$C$116 -> $11,250.00 | I66: =G66*1.05 -> $11,812.50 | J66: =I66*$C$116 -> $11,812.50 | K66: =I66*1.05 -> $12,403.13 | L66: =K66*$C$116 -> $12,403.13 | M66: =K66*1.05 -> $13,023.28 | N66: =M66*$C$116 -> $13,023.28 | O66: =M66*1.05 -> $13,674.45 | P66: =O66*$C$116 -> $13,674.45 | Q66: =O66*1.05 -> $14,358.17 | R66: =Q66*$C$116 -> $14,358.17 | S66: =Q66*1.05 -> $15,076.08 | T66: =S66*$C$116 -> $15,076.08 | U66: =S66*1.05 -> $15,829.88 | V66: =U66*$C$116 -> $15,829.88 | W66: =U66*1.05 -> $16,621.37 | X66: =W66*$C$116 -> $16,621.37
E67: X 12 | F67: months | G67: X 12 | H67: months | I67: X 12 | J67: months | K67: X 12 | L67: months | M67: X 12 | N67: months | O67: X 12 | P67: months | Q67: X 12 | R67: months | S67: X 12 | T67: months | U67: X 12 | V67: months | W67: X 12 | X67: months
B68: Tier 1 Evaluation Cost | E68: =F66*12 -> = $ 159,000 | G68: =H66*12 -> = $ 135,000 | I68: =J66*12 -> = $ 141,750 | K68: =L66*12 -> = $ 148,838 | M68: =N66*12 -> = $ 156,279 | O68: =P66*12 -> = $ 164,093 | Q68: =R66*12 -> = $ 172,298 | S68: =T66*12 -> = $ 180,913 | U68: =V66*12 -> = $ 189,959 | W68: =X66*12 -> = $ 199,456 | Y68: =SUM(E68:W68) -> =$1,647,586 | Z68: =Y68/10 -> =$164,759
B69: Tier 2 Concurrent Audit Monthly Administrative Fee
B70: To support between 15,001-30,000 Concurrent Audits per Year | D70: Total Monthly Cost | E70: $15,250.00 | F70: =E70*$C$116 -> $15,250.00 | G70: $13,300.00 | H70: =G70*$C$116 -> $13,300.00 | I70: =G70*1.05 -> $13,965.00 | J70: =I70*$C$116 -> $13,965.00 | K70: =I70*1.05 -> $14,663.25 | L70: =K70*$C$116 -> $14,663.25 | M70: =K70*1.05 -> $15,396.41 | N70: =M70*$C$116 -> $15,396.41 | O70: =M70*1.05 -> $16,166.23 | P70: =O70*$C$116 -> $16,166.23 | Q70: =O70*1.05 -> $16,974.54 | R70: =Q70*$C$116 -> $16,974.54 | S70: =Q70*1.05 -> $17,823.27 | T70: =S70*$C$116 -> $17,823.27 | U70: =S70*1.05 -> $18,714.44 | V70: =U70*$C$116 -> $18,714.44 | W70: =U70*1.05 -> $19,650.16 | X70: =W70*$C$116 -> $19,650.16
E71: X 12 | F71: months | G71: X 12 | H71: months | I71: X 12 | J71: months | K71: X 12 | L71: months | M71: X 12 | N71: months | O71: X 12 | P71: months | Q71: X 12 | R71: months | S71: X 12 | T71: months | U71: X 12 | V71: months | W71: X 12 | X71: months
B72: Tier 2 Evaluation Cost | E72: =F70*12 -> =$183,000 | G72: =H70*12 -> =$159,600 | I72: =J70*12 -> =$167,580 | K72: =L70*12 -> =$175,959 | M72: =N70*12 -> =$184,757 | O72: =P70*12 -> =$193,995 | Q72: =R70*12 -> =$203,695 | S72: =T70*12 -> =$213,879 | U72: =V70*12 -> =$224,573 | W72: =X70*12 -> =$235,802 | Y72: =SUM(E72:W72) -> =$1,942,840 | Z72: =Y72/10 -> =$194,284
B73: Tier 3 Concurrent Audit Monthly Administrative Fee
B74: To support a minimum of 30,001 Concurrent Audits per Year | D74: Total Monthly Cost | E74: $17,250.00 | F74: =E74*$C$116 -> $17,250.00 | G74: $15,350.00 | H74: =G74*$C$116 -> $15,350.00 | I74: =G74*1.05 -> $16,117.50 | J74: =I74*$C$116 -> $16,117.50 | K74: =I74*1.05 -> $16,923.38 | L74: =K74*$C$116 -> $16,923.38 | M74: =K74*1.05 -> $17,769.54 | N74: =M74*$C$116 -> $17,769.54 | O74: =M74*1.05 -> $18,658.02 | P74: =O74*$C$116 -> $18,658.02 | Q74: =O74*1.05 -> $19,590.92 | R74: =Q74*$C$116 -> $19,590.92 | S74: =Q74*1.05 -> $20,570.47 | T74: =S74*$C$116 -> $20,570.47 | U74: =S74*1.05 -> $21,598.99 | V74: =U74*$C$116 -> $21,598.99 | W74: =U74*1.05 -> $22,678.94 | X74: =W74*$C$116 -> $22,678.94
E75: X 12 | F75: months | G75: X 12 | H75: months | I75: X 12 | J75: months | K75: X 12 | L75: months | M75: X 12 | N75: months | O75: X 12 | P75: months | Q75: X 12 | R75: months | S75: X 12 | T75: months | U75: X 12 | V75: months | W75: X 12 | X75: months
B76: Tier 3 Evaluation Cost | E76: =F74*12 -> =$207,000 | G76: =H74*12 -> =$184,200 | I76: =J74*12 -> =$193,410 | K76: =L74*12 -> =$203,081 | M76: =N74*12 -> =$213,235 | O76: =P74*12 -> =$223,896 | Q76: =R74*12 -> =$235,091 | S76: =T74*12 -> =$246,846 | U76: =V74*12 -> =$259,188 | W76: =X74*12 -> =$272,147 | Y76: =SUM(E76:W76) -> =$2,238,093 | Z76: =Y76/10 -> =$223,809
B80: Table B.4
B81: Pharmacy Lock In (PLI) Administrative Fee The monthly administration fee should include all the O&M costs to provide the PLI services required as described in the scope of work. | E81: Year 1 | G81: Year 2 | I81: Year 3 | K81: Year 4 | M81: Year 5 | O81: Year 6 | Q81: Year 7 | S81: Year 8 | U81: Year 9 | W81: Year 10 | Y81: 10-Year Total for Pharmacy Fraud, Waste and Abuse Audit Services O&M PLI Services Administration | Z81: For Informational Purposes Only Annual Average PLI Services Administration Cost
E82: Initial Rate | F82: CPI-U Adjusted Rate | G82: Initial Rate | H82: CPI-U Adjusted Rate | I82: Initial Rate | J82: CPI-U Adjusted Rate | K82: Initial Rate | L82: CPI-U Adjusted Rate | M82: Initial Rate | N82: CPI-U Adjusted Rate | O82: Initial Rate | P82: CPI-U Adjusted Rate | Q82: Initial Rate | R82: CPI-U Adjusted Rate | S82: Initial Rate | T82: CPI-U Adjusted Rate | U82: Initial Rate | V82: CPI-U Adjusted Rate | W82: Initial Rate | X82: CPI-U Adjusted Rate
B83: Tier 1 PLI Services Monthly Administrative Fee
B84: For a PLI program with a maximum of 100 Active Members | D84: Total Monthly Cost | E84: $22,500.00 | F84: =E84*$C$116 -> $22,500.00 | G84: $18,375.00 | H84: =G84*$C$116 -> $18,375.00 | I84: =G84*1.05 -> $19,293.75 | J84: =I84*$C$116 -> $19,293.75 | K84: =I84*1.05 -> $20,258.44 | L84: =K84*$C$116 -> $20,258.44 | M84: =K84*1.05 -> $21,271.36 | N84: =M84*$C$116 -> $21,271.36 | O84: =M84*1.05 -> $22,334.93 | P84: =O84*$C$116 -> $22,334.93 | Q84: =O84*1.05 -> $23,451.67 | R84: =Q84*$C$116 -> $23,451.67 | S84: =Q84*1.05 -> $24,624.26 | T84: =S84*$C$116 -> $24,624.26 | U84: =S84*1.05 -> $25,855.47 | V84: =U84*$C$116 -> $25,855.47 | W84: =U84*1.05 -> $27,148.24 | X84: =W84*$C$116 -> $27,148.24
E85: X 12 | F85: months | G85: X 12 | H85: months | I85: X 12 | J85: months | K85: X 12 | L85: months | M85: X 12 | N85: months | O85: X 12 | P85: months | Q85: X 12 | R85: months | S85: X 12 | T85: months | U85: X 12 | V85: months | W85: X 12 | X85: months
B86: Tier 1 Evaluation Cost | E86: =F84*12 -> = $ 270,000 | G86: =H84*12 -> = $ 220,500 | I86: =J84*12 -> = $ 231,525 | K86: =L84*12 -> = $ 243,101 | M86: =N84*12 -> = $ 255,256 | O86: =P84*12 -> = $ 268,019 | Q86: =R84*12 -> = $ 281,420 | S86: =T84*12 -> = $ 295,491 | U86: =V84*12 -> = $ 310,266 | W86: =X84*12 -> = $ 325,779 | Y86: =SUM(E86:W86) -> =$2,701,357 | Z86: =Y86/10 -> =$270,136
B87: Tier 2 PLI Services Monthly Administrative Fee
B88: For a PLI program with 101-250 Active Members | D88: Total Monthly Cost | E88: $34,500.00 | F88: =E88*$C$116 -> $34,500.00 | G88: $30,375.00 | H88: =G88*$C$116 -> $30,375.00 | I88: =G88*1.05 -> $31,893.75 | J88: =I88*$C$116 -> $31,893.75 | K88: =I88*1.05 -> $33,488.44 | L88: =K88*$C$116 -> $33,488.44 | M88: =K88*1.05 -> $35,162.86 | N88: =M88*$C$116 -> $35,162.86 | O88: =M88*1.05 -> $36,921.00 | P88: =O88*$C$116 -> $36,921.00 | Q88: =O88*1.05 -> $38,767.05 | R88: =Q88*$C$116 -> $38,767.05 | S88: =Q88*1.05 -> $40,705.41 | T88: =S88*$C$116 -> $40,705.41 | U88: =S88*1.05 -> $42,740.68 | V88: =U88*$C$116 -> $42,740.68 | W88: =U88*1.05 -> $44,877.71 | X88: =W88*$C$116 -> $44,877.71
E89: X 12 | F89: months | G89: X 12 | H89: months | I89: X 12 | J89: months | K89: X 12 | L89: months | M89: X 12 | N89: months | O89: X 12 | P89: months | Q89: X 12 | R89: months | S89: X 12 | T89: months | U89: X 12 | V89: months | W89: X 12 | X89: months
B90: Tier 2 Evaluation Cost | E90: =F88*12 -> =$414,000 | G90: =H88*12 -> =$364,500 | I90: =J88*12 -> =$382,725 | K90: =L88*12 -> =$401,861 | M90: =N88*12 -> =$421,954 | O90: =P88*12 -> =$443,052 | Q90: =R88*12 -> =$465,205 | S90: =T88*12 -> =$488,465 | U90: =V88*12 -> =$512,888 | W90: =X88*12 -> =$538,533 | Y90: =SUM(E90:W90) -> =$4,433,183 | Z90: =Y90/10 -> =$443,318
B91: Tier 3 Concurrent Audit Monthly Administrative Fee
B92: For a PLI program with greater than 250 Active Members | D92: Total Monthly Cost | E92: $40,500.00 | F92: =E92*$C$116 -> $40,500.00 | G92: $36,375.00 | H92: =G92*$C$116 -> $36,375.00 | I92: =G92*1.05 -> $38,193.75 | J92: =I92*$C$116 -> $38,193.75 | K92: =I92*1.05 -> $40,103.44 | L92: =K92*$C$116 -> $40,103.44 | M92: =K92*1.05 -> $42,108.61 | N92: =M92*$C$116 -> $42,108.61 | O92: =M92*1.05 -> $44,214.04 | P92: =O92*$C$116 -> $44,214.04 | Q92: =O92*1.05 -> $46,424.74 | R92: =Q92*$C$116 -> $46,424.74 | S92: =Q92*1.05 -> $48,745.98 | T92: =S92*$C$116 -> $48,745.98 | U92: =S92*1.05 -> $51,183.28 | V92: =U92*$C$116 -> $51,183.28 | W92: =U92*1.05 -> $53,742.44 | X92: =W92*$C$116 -> $53,742.44
E93: X 12 | F93: months | G93: X 12 | H93: months | I93: X 12 | J93: months | K93: X 12 | L93: months | M93: X 12 | N93: months | O93: X 12 | P93: months | Q93: X 12 | R93: months | S93: X 12 | T93: months | U93: X 12 | V93: months | W93: X 12 | X93: months
B94: Tier 3 Evaluation Cost | E94: =F92*12 -> =$486,000 | G94: =H92*12 -> =$436,500 | I94: =J92*12 -> =$458,325 | K94: =L92*12 -> =$481,241 | M94: =N92*12 -> =$505,303 | O94: =P92*12 -> =$530,568 | Q94: =R92*12 -> =$557,097 | S94: =T92*12 -> =$584,952 | U94: =V92*12 -> =$614,199 | W94: =X92*12 -> =$644,909 | Y94: =SUM(E94:W94) -> =$5,299,095 | Z94: =Y94/10 -> =$529,910
B98: Table C
B99: Instructions: Complete the section below by entering the Hourly Rate in the yellow boxes for each identified Role. As may be requested by the State on a case by case basis and agreed upon by the Contractor, the Contractor will provide ad hoc services related to potential tasks as described below. Note: These charges will only be billed for project-related services not specified in the eRFP and requested by the State for such services in writing. The total cost for all State requested and approved projects shall not exceed the amount indicated by the State in its Participating Addendum. The proposed costs will not be evaluated as part of the total contract value.
B100: Ad Hoc Professional Services | E100: Year 1 | G100: Year 2 | I100: Year 3 | K100: Year 4 | M100: Year 5 | O100: Year 6 | Q100: Year 7 | S100: Year 8 | U100: Year 9 | W100: Year 10 | Y100: 10-Year Average of Hourly Rates
B101: Role | C101: Potential Responsibilities | E101: Initial Hourly Rate | F101: CPI-U Adjusted Rate | G101: Initial Hourly Rate | H101: CPI-U Adjusted Rate | I101: Initial Hourly Rate | J101: CPI-U Adjusted Rate | K101: Initial Hourly Rate | L101: CPI-U Adjusted Rate | M101: Initial Hourly Rate | N101: CPI-U Adjusted Rate | O101: Initial Hourly Rate | P101: CPI-U Adjusted Rate | Q101: Initial Hourly Rate | R101: CPI-U Adjusted Rate | S101: Initial Hourly Rate | T101: CPI-U Adjusted Rate | U101: Initial Hourly Rate | V101: CPI-U Adjusted Rate | W101: Initial Hourly Rate | X101: CPI-U Adjusted Rate
B102: Business Analyst | C102: Evaluates business processes, anticipating requirements, uncovering areas for improvement, and developing and implementing Solutions. | E102: $100.00 | F102: =MAX(ROUND(E102*$C$116,2),0) -> $100.00 | G102: =E102*1.05 -> $105.00 | H102: =MAX(ROUND(G102*$C$116,2),0) -> $105.00 | I102: =G102*1.05 -> $110.25 | J102: =MAX(ROUND(I102*$C$116,2),0) -> $110.25 | K102: =I102*1.05 -> $115.76 | L102: =MAX(ROUND(K102*$C$116,2),0) -> $115.76 | M102: =K102*1.05 -> $121.55 | N102: =MAX(ROUND(M102*$C$116,2),0) -> $121.55 | O102: =M102*1.05 -> $127.63 | P102: =MAX(ROUND(O102*$C$116,2),0) -> $127.63 | Q102: =O102*1.05 -> $134.01 | R102: =MAX(ROUND(Q102*$C$116,2),0) -> $134.01 | S102: =Q102*1.05 -> $140.71 | T102: =MAX(ROUND(S102*$C$116,2),0) -> $140.71 | U102: =S102*1.05 -> $147.75 | V102: =MAX(ROUND(U102*$C$116,2),0) -> $147.75 | W102: =U102*1.05 -> $155.13 | X102: =MAX(ROUND(W102*$C$116,2),0) -> $155.13 | Y102: =(F102+H102+J102+L102+N102+P102+R102+T102+V102+X102)/10 -> $125.78
B103: Senior Developer | C103: Responsible for designing, testing, and implementing new and updated software programs. | E103: $162.50 | F103: =MAX(ROUND(E103*$C$116,2),0) -> $162.50 | G103: =E103*1.05 -> $170.63 | H103: =MAX(ROUND(G103*$C$116,2),0) -> $170.63 | I103: =G103*1.05 -> $179.16 | J103: =MAX(ROUND(I103*$C$116,2),0) -> $179.16 | K103: =I103*1.05 -> $188.11 | L103: =MAX(ROUND(K103*$C$116,2),0) -> $188.11 | M103: =K103*1.05 -> $197.52 | N103: =MAX(ROUND(M103*$C$116,2),0) -> $197.52 | O103: =M103*1.05 -> $207.40 | P103: =MAX(ROUND(O103*$C$116,2),0) -> $207.40 | Q103: =O103*1.05 -> $217.77 | R103: =MAX(ROUND(Q103*$C$116,2),0) -> $217.77 | S103: =Q103*1.05 -> $228.65 | T103: =MAX(ROUND(S103*$C$116,2),0) -> $228.65 | U103: =S103*1.05 -> $240.09 | V103: =MAX(ROUND(U103*$C$116,2),0) -> $240.09 | W103: =U103*1.05 -> $252.09 | X103: =MAX(ROUND(W103*$C$116,2),0) -> $252.09 | Y103: =(F103+H103+J103+L103+N103+P103+R103+T103+V103+X103)/10 -> $204.39
B104: Developer | C104: Responsible for developing, coding, installing, and maintaining software systems. | E104: $137.50 | F104: =MAX(ROUND(E104*$C$116,2),0) -> $137.50 | G104: $144.38 | H104: =MAX(ROUND(G104*$C$116,2),0) -> $144.38 | I104: $151.59 | J104: =MAX(ROUND(I104*$C$116,2),0) -> $151.59 | K104: $159.17 | L104: =MAX(ROUND(K104*$C$116,2),0) -> $159.17 | M104: $167.13 | N104: =MAX(ROUND(M104*$C$116,2),0) -> $167.13 | O104: $175.49 | P104: =MAX(ROUND(O104*$C$116,2),0) -> $175.49 | Q104: $184.26 | R104: =MAX(ROUND(Q104*$C$116,2),0) -> $184.26 | S104: $193.48 | T104: =MAX(ROUND(S104*$C$116,2),0) -> $193.48 | U104: $203.15 | V104: =MAX(ROUND(U104*$C$116,2),0) -> $203.15 | W104: $213.31 | X104: =MAX(ROUND(W104*$C$116,2),0) -> $213.31 | Y104: $172.95
B105: Quality assurance/Test | C105: Works with the development team to debug code, correct errors, and troubleshoot any issues with software code. | E105: $87.50 | F105: =MAX(ROUND(E105*$C$116,2),0) -> $87.50 | G105: $91.88 | H105: =MAX(ROUND(G105*$C$116,2),0) -> $91.88 | I105: $96.47 | J105: =MAX(ROUND(I105*$C$116,2),0) -> $96.47 | K105: $101.29 | L105: =MAX(ROUND(K105*$C$116,2),0) -> $101.29 | M105: $106.36 | N105: =MAX(ROUND(M105*$C$116,2),0) -> $106.36 | O105: $111.67 | P105: =MAX(ROUND(O105*$C$116,2),0) -> $111.67 | Q105: $117.26 | R105: =MAX(ROUND(Q105*$C$116,2),0) -> $117.26 | S105: $123.12 | T105: =MAX(ROUND(S105*$C$116,2),0) -> $123.12 | U105: $129.28 | V105: =MAX(ROUND(U105*$C$116,2),0) -> $129.28 | W105: $135.74 | X105: =MAX(ROUND(W105*$C$116,2),0) -> $135.74 | Y105: $110.06
B106: Total Ad Hoc Professional Services Cost (Sum of 10-Year Average of Hourly Rates for all Identified Roles) | Y106: =SUM(Y102:Y105) -> $613.17
B110: Table D
B111: Consumer Price Index Urban (CPI-U) Adjustment:
B112: A. CPI-U for Master Agreement Date MM/DD/20YY: | C112: 0.000000
B113: B. CPI-U for Participating Addendum Date: | C113: 0.000000
B114: C. Index Point Change equals B minus A: | C114: =C113-C112 -> 0.000000
B115: D. Equals C divided by A: | C115: =IFERROR(C114/C112,0) -> 0.000000
B116: E. CPI-U Inflation Percentage equals B plus 1.00: | C116: =C115+1 -> 1.000000

Sheet Scoring Formula
B3: State of Georgia
B4: In Conjunction with NASPO ValuePoint
B5: Electronic Request for Proposals ("eRFP")
B6: eRFP (Event) Number: 41900-DCH0000136
B7: Event Name: Pharmacy Benefit Services
B8: Attachment X - Pharmacy FWA Audit Services Cost Worksheet
B10: Cost Scoring Formula
B13: The Supplier deemed to have the most competitive cost response overall, as determined by the Lead State, will receive the maximum score for the cost criteria. As a general rule, other Suppliers’ cost responses will receive a percentage of the maximum score based on the percentage differential between the most competitive cost proposal and the specific proposal in question. This cost scoring can be accomplished using the following formula:
B14: L/R x P = Z L = Price of the Supplier's response with the lowest cost. R = Total cost of the Proposal being ranked. P = Total points available for cost scoring. Z = Assigned Points.
B15: EXAMPLE - The Lead State receives responses from two Suppliers on an RFP. The RFP assigned 700 possible points for technical scores and 300 possible points for cost scores. Supplier A's cost proposal is $50,000. Supplier B's cost proposal is $55,000. As Supplier A offered the lowest cost, Supplier A receives 300 points. The issuing officer can calculate the number of cost points to assign to Supplier B's cost score by using the formula noted above. As shown below, Supplier B's total cost score is 272.7 points. L/R x P = Z ($50,000/$55,000) x 300 = Z .909 x 300 = Z 272.7 = Z
